bitfinex-derivatives/quotes_SOLF0:USTF0_20241217
["timestamp","ask_amount","ask_price","bid_price","bid_amount"]
[1734434276878,7.73609628,222.13,222.01,10.73709215]
[1734434277074,5.51609628,222.13,222.01,10.73709215]
[1734434278083,2.2513,222.1,222.06,2.2517]
[1734434280378,2.2512,222.11,222.06,2.2517]
[1734434280580,5.51609628,222.13,222.06,2.2517]
[1734434280981,2.2512,222.11,222.06,2.2517]
[1734434281177,2.2512,222.11,222.07,2.2516]
[1734434281680,2.2518,222.05,221.96,3.0429]
[1734434281879,10.73709215,222.09,221.97,2.22]
[1734434282079,12.95709215,222.09,221.97,2.22]
[1734434282383,2.2518,222.05,222.0,2.2522]
[1734434283483,2.2519,222.04,222.0,2.2522]
[1734434283782,12.95709215,222.09,221.98,2.2525]
[1734434284080,12.95709215,222.09,221.96,3.0429]
[1734434284081,10.73709215,222.06,221.96,3.0429]
[1734434284779,10.73709215,222.06,221.96,1.57]
[1734434285381,10.73709215,222.06,221.88,1.4762]
[1734434285382,10.73709215,222.0,221.88,3.6962]
[1734434285687,12.95709215,222.0,221.88,1.4762]
[1734434285881,12.95709215,222.0,221.88,6.81482099]
[1734434286079,12.95709215,222.0,221.9,2.2533]
[1734434286684,2.2527,221.97,221.9,2.2533]
[1734434287280,2.2527,221.96,221.9,2.2533]
[1734434289579,2.2532,221.92,221.87,2.2536]
[1734434290789,2.2533,221.91,221.86,2.2537]
[1734434290985,10.73709215,221.94,221.85,3.0533]
[1734434291183,2.22,221.96,221.85,5.2733]
[1734434291386,2.2527,221.96,221.88,2.2535]
[1734434291585,2.2527,221.96,221.85,5.2733]
[1734434291790,10.73709215,221.97,221.85,5.2733]
[1734434292189,2.2529,221.95,221.89,2.2533]
[1734434292393,10.73709215,221.97,221.89,2.2533]
[1734434292590,10.73709215,221.97,221.85,5.2733]
[1734434293199,2.2526,221.97,221.92,2.253]
[1734434293489,2.22,222.03,221.9,12.95709215]
[1734434293694,2.22,222.03,221.91,2.22]
[1734434293894,2.2523,222.01,221.95,2.2527]
[1734434294791,2.2523,222.01,221.92,1.5691]
[1734434295091,2.2523,222.01,221.96,2.2527]
[1734434296397,2.2521,222.02,221.97,2.2526]
[1734434296596,1.512,222.08,221.93,10.73709215]
[1734434296792,2.22,222.08,221.93,10.73709215]
[1734434296995,2.22,222.08,222.0,2.2523]
[1734434296996,2.2518,222.05,222.0,2.2523]
[1734434298295,10.73709215,222.02,221.79,26.09117981]
[1734434298504,10.73709215,221.96,221.84,1.6082]
[1734434298702,10.73709215,221.93,221.84,1.6082]
[1734434298899,2.2534,221.9,221.84,1.6082]
[1734434299110,12.95709215,221.93,221.84,1.6082]
[1734434299502,2.2534,221.9,221.84,3.8621]
[1734434299702,12.95709215,221.93,221.84,1.6082]
[1734434300003,2.2534,221.9,221.84,3.8621]
[1734434300797,2.2532,221.92,221.86,2.2537]
[1734434301000,2.2532,221.92,221.84,1.6082]
[1734434302603,2.2532,221.92,221.87,2.2536]
[1734434303707,4.473,221.93,221.87,2.2536]
[1734434304003,2.253,221.93,221.87,2.2536]
[1734434305608,2.253,221.93,221.88,2.2535]
[1734434307208,2.253,221.93,221.84,1.6082]
[1734434307406,5.31523649,221.95,221.87,2.2536]
[1734434308105,2.2532,221.92,221.87,2.2536]
[1734434308412,5.31523649,221.95,221.84,1.6082]
[1734434308606,2.2532,221.91,221.86,2.2537]
[1734434309814,2.2532,221.91,221.87,2.2536]
[1734434312214,2.2531,221.93,221.88,2.2535]
[1734434312411,5.31523649,221.95,221.88,2.2535]
[1734434314513,2.2532,221.92,221.88,2.2535]
[1734434315915,2.2532,221.92,221.87,2.2536]
[1734434316113,2.2533,221.91,221.84,1.6082]
[1734434316417,2.2533,221.91,221.86,2.2536]
[1734434316715,10.73709215,221.87,221.78,2.22]
[1734434316911,10.73709215,221.87,221.79,2.2544]
[1734434317714,2.254,221.84,221.79,2.2544]
[1734434318118,10.73709215,221.87,221.79,2.2544]
[1734434318314,2.22,221.86,221.77,2.2546]
[1734434318519,2.22,221.86,221.73,12.95709215]
[1734434318708,2.22,221.86,221.74,5.32712954]
[1734434319112,2.2542,221.82,221.78,2.2545]
[1734434321619,2.2541,221.83,221.74,7.54712954]
[1734434322118,2.2541,221.83,221.78,2.2545]
[1734434322319,2.2541,221.83,221.74,7.54712954]
[1734434322814,2.2541,221.83,221.79,2.2544]
[1734434323417,2.2542,221.82,221.79,2.2544]
[1734434325120,2.22,221.86,221.79,2.2544]
[1734434325322,2.254,221.83,221.79,2.2544]
[1734434326816,10.73709215,221.84,221.53,63.30132983]
[1734434327021,10.73709215,221.8,221.59,2.953]
[1734434327222,2.22,221.79,221.64,10.73709215]
[1734434327418,2.2549,221.75,221.69,2.2554]
[1734434328220,2.255,221.74,221.69,2.2554]
[1734434328725,12.25789215,221.83,221.7,10.73709215]
[1734434328929,2.22,221.81,221.7,13.81529215]
[1734434329826,2.22,221.81,221.74,2.2549]
[1734434329827,2.2545,221.79,221.74,2.2549]
[1734434330625,2.2545,221.79,221.7,13.81529215]
[1734434330829,2.2545,221.79,221.75,2.2548]
[1734434331930,2.22,221.81,221.75,2.2548]
[1734434332130,2.2544,221.8,221.75,2.2548]
[1734434334832,2.2546,221.78,221.73,2.255]
[1734434335031,10.73709215,221.8,221.7,1.4693]
[1734434336037,2.2545,221.79,221.7,1.4693]
[1734434336732,2.2545,221.79,221.74,2.2549]
[1734434336930,10.73709215,221.8,221.7,1.4693]
[1734434337131,10.73709215,221.8,221.71,2.2552]
[1734434337533,2.2548,221.76,221.7,1.4693]
[1734434337933,10.73709215,221.8,221.7,1.4693]
[1734434338134,2.2547,221.77,221.7,1.4693]
[1734434338940,12.93709215,221.8,221.7,1.4693]
[1734434339137,2.2548,221.76,221.72,2.2551]
[1734434340240,6.87701424,221.74,221.61,2.2]
[1734434340442,2.2,221.74,221.62,12.21913137]
[1734434340644,2.2,221.74,221.64,6.87701424]
[1734434340836,6.87701424,221.72,221.64,6.87701424]
[1734434341234,9.13221424,221.72,221.68,2.2555]
[1734434341939,2.2552,221.72,221.69,2.2554]
[1734434343043,10.75010223,221.75,221.63,2.2]
[1734434343438,10.75010223,221.75,221.59,15.28590223]
[1734434343638,10.75010223,221.75,221.61,2.2]
[1734434343941,2.2553,221.71,221.67,2.2556]
[1734434344246,2.2,221.74,221.61,7.70180504]
[1734434344439,2.2555,221.69,221.61,7.70180504]
[1734434344836,2.2,221.74,221.61,7.70180504]
[1734434345038,2.2552,221.72,221.68,2.2555]
[1734434345541,2.2,221.74,221.68,2.2555]
[1734434345942,10.75010223,221.72,221.61,5.50180504]
[1734434346143,10.75010223,221.69,221.43,57.72718503]
[1734434346344,2.2,221.68,221.54,1.5079]
[1734434346737,10.75010223,221.66,221.54,6.86475643]
[1734434347044,10.75010223,221.66,221.57,2.2567]
[1734434347543,10.75010223,221.66,221.54,9.06475643]
[1734434347544,10.75010223,221.66,221.54,1.5079]
[1734434347744,2.2563,221.61,221.54,3.7648]
[1734434348044,10.75010223,221.66,221.54,12.25800223]
[1734434348347,2.2,221.65,221.54,12.25800223]
[1734434348545,2.2562,221.63,221.58,2.2566]
[1734434348741,2.2,221.65,221.54,1.5079]
[1734434349444,2.2,221.65,221.56,2.2568]
[1734434349643,2.2,221.65,221.54,1.5079]
[1734434349839,2.2,221.65,221.57,2.2567]
[1734434350039,7.50479543,221.65,221.57,2.2567]
[1734434350439,7.50479543,221.65,221.48,1.528]
[1734434350440,2.2563,221.61,221.52,2.2572]
[1734434350643,2.2,221.62,221.49,2.2]
[1734434351152,2.2564,221.6,221.49,2.2]
[1734434351353,2.2,221.62,221.49,2.2]
[1734434351655,2.2,221.62,221.51,10.75010223]
[1734434352549,2.2,221.62,221.52,2.2]
[1734434352746,4.4562,221.62,221.57,2.2566]
[1734434353253,2.2,221.62,221.57,2.2566]
[1734434353447,2.2563,221.61,221.57,2.2566]
[1734434354051,2.2563,221.61,221.53,3.1154]
[1734434354052,4.4562,221.62,221.58,2.2566]
[1734434354454,2.2,221.62,221.53,3.1154]
[1734434354757,2.2,221.62,221.58,2.2565]
[1734434354954,2.2,221.62,221.53,3.1154]
[1734434355754,2.2564,221.6,221.53,3.1154]
[1734434356154,2.2562,221.62,221.56,2.2568]
[1734434356356,2.2562,221.62,221.53,3.1154]
[1734434356854,2.2562,221.62,221.57,2.2566]
[1734434357661,2.2563,221.61,221.53,3.1154]
[1734434358059,2.2,221.64,221.52,2.2]
[1734434358255,2.2565,221.59,221.55,2.2568]
[1734434359263,2.2567,221.58,221.54,2.257]
[1734434359454,10.75010223,221.63,221.51,10.75010223]
[1734434360254,10.75010223,221.6,221.49,3.0851]
[1734434360562,10.75010223,221.57,221.44,12.95010223]
[1734434360959,2.257,221.54,221.5,2.2573]
[1734434361261,10.75010223,221.57,221.45,2.2]
[1734434361663,2.2572,221.53,221.49,2.2575]
[1734434362461,2.2572,221.53,221.47,5.32850677]
[1734434362665,2.2569,221.55,221.47,5.32850677]
[1734434363158,2.257,221.54,221.5,2.2574]
[1734434363972,12.95010223,221.57,221.48,1.6003]
[1734434364267,2.2569,221.55,221.51,2.2573]
[1734434365863,12.95010223,221.57,221.51,2.2573]
[1734434366060,6.89073057,221.55,221.51,2.2573]
[1734434366767,6.89073057,221.59,221.55,2.2568]
[1734434368067,6.89073057,221.57,221.43,2.22]
[1734434368267,6.89073057,221.54,221.46,6.89073057]
[1734434368566,9.14743057,221.58,221.54,2.257]
[1734434368773,2.22,221.6,221.52,6.89073057]
[1734434369072,6.89073057,221.59,221.52,6.89073057]
[1734434369972,6.89073057,221.59,221.56,2.2568]
[1734434370471,2.257,221.55,221.51,2.2572]
[1734434370664,6.89073057,221.57,221.5,6.89073057]
[1734434371064,9.14753057,221.57,221.53,2.257]
[1734434371266,2.22,221.6,221.46,8.42043057]
[1734434371267,6.89073057,221.55,221.46,8.42043057]
[1734434371466,6.89073057,221.48,221.42,6.89073057]
[1734434371666,2.2579,221.45,221.42,6.89073057]
[1734434371862,9.11073057,221.5,221.42,6.89073057]
[1734434372064,2.22,221.5,221.39,10.77246578]
[1734434372468,2.2576,221.48,221.44,2.258]
[1734434374866,2.22,221.52,221.41,2.22]
[1734434375072,10.77246578,221.47,221.23,4.5202]
[1734434375273,2.22,221.46,221.32,10.77246578]
[1734434375471,2.22,221.47,221.35,10.77246578]
[1734434375672,12.99246578,221.5,221.38,10.77246578]
[1734434375976,12.99246578,221.5,221.39,2.22]
[1734434376677,2.2578,221.47,221.42,2.2581]
[1734434377174,2.2574,221.5,221.45,2.2579]
[1734434377374,1.4627,221.54,221.45,2.22]
[1734434377778,10.77246578,221.53,221.4,1.5243]
[1734434377968,6.97748292,221.54,221.36,1.6117]
[1734434377969,10.77246578,221.47,221.36,1.6117]
[1734434378279,2.22,221.46,221.36,1.6117]
[1734434378478,2.2578,221.46,221.39,2.2584]
[1734434378669,2.22,221.48,221.37,10.77246578]
[1734434378874,2.22,221.48,221.38,2.22]
[1734434379171,10.77246578,221.47,221.38,2.22]
[1734434379377,2.22,221.48,221.38,2.22]
[1734434379572,2.22,221.48,221.38,12.99246578]
[1734434379777,2.22,221.48,221.39,2.22]
[1734434379974,2.2577,221.47,221.41,2.2583]
[1734434380473,4.5133,221.58,221.45,10.77246578]
[1734434380474,10.77246578,221.58,221.45,10.77246578]
[1734434380679,10.77246578,221.58,221.46,3.8069]
[1734434380875,5.42813332,221.57,221.46,3.8069]
[1734434381075,10.77246578,221.58,221.46,3.8069]
[1734434381581,2.2569,221.56,221.46,3.8069]
[1734434382083,2.2569,221.56,221.46,5.3814]
[1734434382474,10.77246578,221.58,221.46,5.3814]
[1734434382678,1.4702,221.64,221.51,10.77246578]
[1734434382679,6.9037544,221.64,221.51,10.77246578]
[1734434382878,1.4702,221.64,221.52,2.22]
[1734434383080,2.2564,221.61,221.52,2.22]
[1734434384382,12.99246578,221.65,221.46,3.1614]
[1734434384588,10.77246578,221.68,221.56,10.77246578]
[1734434384882,10.77246578,221.68,221.57,6.6656]
[1734434385074,2.2558,221.66,221.53,5.31261067]
[1734434385279,10.77246578,221.65,221.54,2.22]
[1734434385582,10.77246578,221.65,221.54,3.7081]
[1734434386581,2.2562,221.62,221.56,2.2568]
[1734434386780,2.2562,221.62,221.57,2.22]
[1734434387680,2.2562,221.62,221.57,4.4767]
[1734434389083,2.2561,221.63,221.57,4.4767]
[1734434389277,10.77246578,221.65,221.57,2.22]
[1734434389583,12.99246578,221.68,221.57,2.22]
[1734434389984,2.2559,221.65,221.59,2.2564]
[1734434390384,10.77246578,221.61,221.4,10.77246578]
[1734434390585,10.77246578,221.55,221.43,5.49232436]
[1734434391085,2.2573,221.51,221.44,4.478]
[1734434391681,2.2574,221.5,221.44,4.478]
[1734434391988,2.22,221.56,221.46,2.2578]
[1734434392391,2.22,221.56,221.47,2.22]
[1734434392693,2.2572,221.52,221.47,2.22]
[1734434392992,2.22,221.56,221.47,2.22]
[1734434393182,2.2572,221.53,221.47,4.4777]
[1734434394088,2.257,221.54,221.47,2.22]
[1734434394795,10.77246578,221.58,221.49,2.2575]
[1734434395493,10.77246578,221.58,221.47,2.22]
[1734434395690,2.257,221.54,221.48,2.2576]
[1734434396994,10.77246578,221.58,221.5,2.2574]
[1734434397390,10.77246578,221.58,221.47,2.22]
[1734434397695,10.77246578,221.58,221.49,2.2575]
[1734434397696,2.257,221.54,221.49,2.2575]
[1734434398289,2.2569,221.55,221.49,2.2575]
[1734434400404,2.2569,221.55,221.5,2.2574]
[1734434401689,310.59377321,221.8,221.47,2.22]
[1734434401995,310.59377321,221.8,221.5,10.77246578]
[1734434401996,10.77246578,221.63,221.5,10.77246578]
[1734434402190,2.2565,221.6,221.54,2.2569]
[1734434402394,5.31465452,221.63,221.55,2.3]
[1734434402595,16.0871203,221.63,221.56,2.3]
[1734434402891,2.2564,221.61,221.56,2.3]
[1734434403497,4.5099,221.75,221.56,2.3]
[1734434403498,10.77246578,221.66,221.56,2.3]
[1734434403694,10.77246578,221.68,221.56,2.3]
[1734434404002,10.77246578,221.68,221.57,4.5306]
[1734434404197,13.02806578,221.68,221.57,4.5306]
[1734434404996,10.77246578,221.71,221.57,4.5306]
[1734434406299,10.77246578,221.68,221.57,4.5306]
[1734434406599,10.77246578,221.68,221.58,2.3]
[1734434407305,10.77246578,221.68,221.57,4.5306]
[1734434407504,10.77246578,221.68,221.58,2.3]
[1734434408104,2.2559,221.65,221.6,2.2564]
[1734434408502,2.2559,221.65,221.58,2.3]
[1734434408702,2.2559,221.65,221.6,2.2563]
[1734434409411,10.77246578,221.68,221.61,2.3]
[1734434409705,10.77246578,221.68,221.59,2.3]
[1734434410004,10.77246578,221.65,221.46,1.5234]
[1734434410197,10.77246578,221.65,221.47,3.8644]
[1734434410198,10.77246578,221.62,221.47,3.8644]
[1734434410611,10.77246578,221.62,221.48,10.77246578]
[1734434411004,10.77246578,221.5,221.36,10.77246578]
[1734434411203,10.77246578,221.5,221.37,2.2586]
[1734434411512,10.77246578,221.47,221.32,2.3]
[1734434411705,2.3,221.46,221.33,10.77246578]
[1734434411907,2.3,221.48,221.38,2.3]
[1734434412307,2.3,221.48,221.41,2.2583]
[1734434413399,4.5576,221.48,221.41,2.2583]
[1734434414312,2.2576,221.48,221.41,2.2583]
[1734434414711,10.77246578,221.5,221.39,2.3]
[1734434414909,2.2575,221.5,221.42,2.2582]
[1734434415316,2.2575,221.5,221.39,13.07246578]
[1734434415912,2.2575,221.5,221.42,2.2582]
[1734434416106,7.68622444,221.52,221.39,13.07246578]
[1734434416506,5.38622444,221.52,221.42,10.77246578]
[1734434416805,2.3,221.57,221.43,3.0212]
[1734434417004,2.3,221.57,221.44,2.3]
[1734434417206,2.2571,221.53,221.46,2.2577]
[1734434418411,2.2571,221.53,221.47,2.2576]
[1734434418715,5.35266316,221.55,221.44,2.3]
[1734434418918,2.257,221.54,221.44,2.3]
[1734434419214,2.257,221.54,221.45,10.77246578]
[1734434420411,5.42439061,221.56,221.46,2.3]
[1734434421117,2.3,221.59,221.47,10.77246578]
[1734434421306,13.07246578,221.62,221.47,10.77246578]
[1734434421507,2.2566,221.58,221.53,2.2571]
[1734434421712,10.77246578,221.62,221.51,2.3]
[1734434421919,13.07246578,221.65,221.51,2.3]
[1734434422109,10.77246578,221.65,221.51,2.3]
[1734434422312,2.2563,221.61,221.51,2.3]
[1734434422818,10.77246578,221.65,221.51,2.3]
[1734434423015,2.2561,221.63,221.58,2.2566]
[1734434423320,10.77246578,221.7,221.57,2.3]
[1734434423510,1.1645,221.75,221.59,10.77246578]
[1734434423714,10.77246578,221.74,221.59,10.77246578]
[1734434424016,10.77246578,221.74,221.65,2.2559]
[1734434424017,2.2555,221.69,221.65,2.2559]
[1734434424216,10.77246578,221.74,221.65,2.2559]
[1734434424608,10.77246578,221.74,221.64,2.34]
[1734434424808,2.2554,221.7,221.64,2.34]
[1734434425319,2.2557,221.67,221.57,1.4841]
[1734434425510,16.1767177,221.71,221.57,3.8241]
[1734434425708,2.34,221.7,221.57,3.8241]
[1734434425916,2.2559,221.66,221.6,2.2564]
[1734434426315,10.77246578,221.68,221.57,3.8241]
[1734434426516,2.2561,221.63,221.58,2.2565]
[1734434427409,2.2561,221.63,221.57,3.8241]
[1734434427815,2.2562,221.62,221.57,3.8241]
[1734434428010,10.77246578,221.65,221.54,1.538]
[1734434428210,10.77246578,221.65,221.53,2.34]
[1734434428211,10.77246578,221.62,221.53,2.34]
[1734434428413,10.77246578,221.62,221.52,2.34]
[1734434428620,2.2568,221.57,221.52,4.5972]
[1734434429515,2.2568,221.57,221.52,2.2572]
[1734434429718,2.2569,221.56,221.52,2.34]
[1734434430521,2.2569,221.55,221.52,2.34]
[1734434431615,2.34,221.6,221.48,2.34]
[1734434432024,2.34,221.6,221.45,3.1474]
[1734434432025,2.34,221.6,221.46,2.2577]
[1734434432216,2.34,221.6,221.46,4.5977]
[1734434432921,2.34,221.6,221.46,2.34]
[1734434434623,2.257,221.54,221.49,2.2575]
[1734434439026,7.77355316,221.59,221.46,2.34]
[1734434439329,2.2571,221.53,221.46,2.34]
[1734434440332,2.2571,221.53,221.48,2.2576]
[1734434441129,2.2572,221.52,221.48,2.2576]
[1734434441926,2.2573,221.51,221.48,2.2576]
[1734434442530,2.2572,221.52,221.48,2.2576]
[1734434442727,2.2572,221.52,221.42,22.73323052]
[1734434442728,7.77355316,221.59,221.49,2.2575]
[1734434443029,2.97602227,221.58,221.49,2.2575]
[1734434443230,7.77355316,221.59,221.47,2.34]
[1734434443635,7.73843382,221.58,221.47,2.34]
[1734434443932,7.73843382,221.57,221.47,2.34]
[1734434444235,7.77355316,221.59,221.47,2.34]
[1734434444435,2.2571,221.54,221.49,2.2575]
[1734434445132,2.2572,221.53,221.5,24.08635014]
[1734434445331,2.2572,221.53,221.49,2.2575]
[1734434445332,2.2572,221.53,221.51,13.61402399]
[1734434445637,2.2572,221.53,221.52,5.23616307]
[1734434446134,2.2572,221.53,221.48,2.2576]
[1734434446331,2.2572,221.53,221.52,5.23700183]
[1734434446533,2.2572,221.53,221.49,5.23700183]
[1734434446735,2.2572,221.53,221.5,13.61614242]
[1734434446935,2.2572,221.53,221.51,5.23700183]
[1734434447229,2.2572,221.53,221.47,2.34]
[1734434447230,2.2572,221.53,221.52,5.23700183]
[1734434450144,2.2578,221.47,221.43,5.60023214]
[1734434450332,2.34,221.54,221.44,8.27666539]
[1734434450535,2.34,221.54,221.45,8.27666539]
[1734434450731,2.34,221.54,221.46,8.27666539]
[1734434450932,2.2578,221.46,221.42,2.2582]
[1734434451133,2.2578,221.46,221.43,8.27688244]
[1734434451444,2.2578,221.46,221.44,8.27688244]
[1734434451641,2.2578,221.46,221.45,8.27688244]
[1734434452041,2.2577,221.47,221.45,8.27688244]
[1734434452237,2.2577,221.47,221.43,2.2581]
[1734434452439,2.2577,221.47,221.44,8.28169871]
[1734434452841,2.2577,221.47,221.45,8.28169871]
[1734434453041,2.2577,221.47,221.43,2.2581]
[1734434453233,2.2577,221.47,221.44,8.28326858]
[1734434453440,2.2577,221.47,221.45,8.28326858]
[1734434453739,10.77008621,221.52,221.43,2.2581]
[1734434453944,10.77008621,221.49,221.44,8.28290168]
[1734434454243,10.77008621,221.45,221.4,0.16438]
[1734434454441,13.01008621,221.45,221.4,0.16438]
[1734434454839,2.2583,221.41,221.4,0.16438]
[1734434455040,13.01008621,221.45,221.35,5.60680198]
[1734434455241,13.01008621,221.45,221.34,2.2589]
[1734434455441,2.2585,221.4,221.35,2.2589]
[1734434456040,2.2586,221.39,221.35,2.2589]
[1734434458146,13.01008621,221.45,221.35,0.22696]
[1734434458355,2.2584,221.41,221.37,2.2587]
[1734434460141,2.2584,221.41,221.38,2.2586]
[1734434460446,13.01008621,221.45,221.35,0.22696]
[1734434460642,10.77008621,221.42,221.35,0.22696]
[1734434460849,2.2588,221.36,221.35,0.22696]
[1734434464747,10.77008621,221.38,221.35,0.22696]
[1734434465458,2.2587,221.37,221.35,0.22696]
[1734434465755,2.24,221.4,221.35,0.22696]
[1734434465952,2.2586,221.38,221.35,0.22696]
[1734434466146,10.77008621,221.41,221.35,0.22696]
[1734434467448,2.2587,221.38,221.35,0.22696]
[1734434467854,10.77008621,221.41,221.35,0.22696]
[1734434468148,2.2585,221.39,221.35,2.48586]
[1734434469253,2.2584,221.4,221.35,2.48586]
[1734434469456,10.77008621,221.44,221.35,0.22696]
[1734434469759,2.2581,221.43,221.36,2.24]
[1734434469956,4.5144,221.53,221.39,2.2584]
[1734434469957,2.24,221.48,221.39,2.2584]
[1734434470255,13.01008621,221.48,221.39,2.2584]
[1734434470450,10.77008621,221.45,221.36,2.24]
[1734434470656,10.77008621,221.45,221.38,2.2586]
[1734434470850,2.2582,221.43,221.36,2.24]
[1734434471056,2.2582,221.43,221.38,2.2586]
[1734434471258,10.77008621,221.45,221.38,2.2586]
[1734434472054,2.2581,221.43,221.39,2.2585]
[1734434474863,2.2582,221.42,221.38,2.2586]
[1734434475160,2.2582,221.42,221.39,5.00147261]
[1734434475367,2.2582,221.42,221.38,2.2586]
[1734434475666,2.2582,221.42,221.39,5.00179554]
[1734434475862,2.2582,221.42,221.36,1.5155]
[1734434476066,2.2581,221.43,221.37,13.00466835]
[1734434476366,2.2581,221.43,221.38,5.00179552]
[1734434476569,2.2582,221.42,221.39,5.00179552]
[1734434476767,2.2582,221.42,221.36,1.5155]
[1734434477161,2.2583,221.41,221.38,2.2586]
[1734434477360,2.2583,221.41,221.39,5.00265835]
[1734434477667,2.2583,221.41,221.38,2.2586]
[1734434477867,2.2583,221.41,221.39,5.00333501]
[1734434478070,2.2583,221.41,221.38,2.2586]
[1734434478271,2.2583,221.41,221.39,5.00333501]
[1734434478473,2.2583,221.41,221.38,2.2586]
[1734434478670,2.2583,221.41,221.39,5.003747]
[1734434478874,2.2583,221.41,221.38,2.2586]
[1734434479170,5.34695352,221.46,221.39,5.003747]
[1734434479171,2.2582,221.42,221.39,5.003747]
[1734434479472,2.2582,221.42,221.38,2.2586]
[1734434479672,2.2582,221.42,221.39,5.00423184]
[1734434479864,2.2582,221.42,221.38,2.2586]
[1734434480070,2.2582,221.42,221.39,5.00423184]
[1734434480267,2.2582,221.42,221.38,2.2586]
[1734434480473,2.2582,221.42,221.39,5.00479108]
[1734434480671,2.2582,221.42,221.38,2.2586]
[1734434481176,2.2582,221.42,221.39,5.00479108]
[1734434481377,2.2582,221.42,221.38,2.2586]
[1734434481673,2.2582,221.42,221.39,5.00542024]
[1734434481974,2.2582,221.42,221.38,2.2586]
[1734434482275,2.2584,221.4,221.39,5.00540894]
[1734434482475,2.2584,221.4,221.27,3.0714]
[1734434482476,10.77008621,221.4,221.27,3.0714]
[1734434482671,10.77008621,221.4,221.31,13.01851417]
[1734434482873,2.2589,221.36,221.32,13.01851417]
[1734434483068,10.77008621,221.4,221.33,13.01851417]
[1734434483367,10.77008621,221.4,221.34,5.00712083]
[1734434483676,10.77008621,221.4,221.32,2.2591]
[1734434483870,10.77008621,221.4,221.33,5.00764248]
[1734434484067,2.24,221.42,221.32,2.2591]
[1734434484068,6.90133764,221.37,221.34,5.00764248]
[1734434484271,6.90133764,221.37,221.32,2.2591]
[1734434484470,2.2588,221.36,221.33,5.00812806]
[1734434484772,2.2588,221.36,221.34,5.00812806]
[1734434484972,2.2588,221.36,221.32,2.2591]
[1734434485275,6.90133764,221.37,221.33,5.00814267]
[1734434485575,6.90133764,221.37,221.34,5.00814267]
[1734434485764,6.90133764,221.37,221.31,2.2593]
[1734434485970,2.2588,221.37,221.32,15.2814282]
[1734434486165,10.78360537,221.41,221.33,5.00854931]
[1734434486369,10.78360537,221.41,221.29,2.24]
[1734434486567,2.2586,221.38,221.33,2.259]
[1734434486875,10.78360537,221.41,221.34,5.00879025]
[1734434487173,10.78360537,221.41,221.33,2.259]
[1734434487174,10.78360537,221.41,221.35,5.00879025]
[1734434487375,10.78360537,221.41,221.33,2.2591]
[1734434487574,10.78360537,221.41,221.34,5.00955759]
[1734434487777,10.78360537,221.41,221.33,2.2591]
[1734434487974,10.78360537,221.41,221.34,5.00974925]
[1734434488171,10.78360537,221.41,221.29,2.24]
[1734434488368,10.78360537,221.41,221.31,5.01124756]
[1734434488672,10.78360537,221.41,221.32,5.01124756]
[1734434488869,10.78360537,221.38,221.3,0.2556]
[1734434489068,10.78360537,221.38,221.31,5.01174413]
[1734434489270,10.78360537,221.38,221.3,0.2556]
[1734434490379,2.2591,221.34,221.3,0.2556]
[1734434490572,10.78360537,221.38,221.3,0.2556]
[1734434490781,2.26,221.37,221.3,0.2556]
[1734434491176,2.2593,221.32,221.3,0.2556]
[1734434492178,2.2593,221.31,221.3,0.2556]
[1734434494578,2.2599,221.26,221.19,3.1008]
[1734434494883,2.26,221.32,221.2,13.0451795]
[1734434495182,2.26,221.32,221.19,5.3608]
[1734434495183,2.2598,221.27,221.22,2.2602]
[1734434495379,10.78360537,221.32,221.23,13.0451795]
[1734434495678,2.26,221.31,221.24,5.01801749]
[1734434495883,2.26,221.31,221.25,5.01801749]
[1734434496083,10.78360537,221.32,221.24,2.26]
[1734434496379,2.2596,221.29,221.25,5.01778348]